[Event "Late-Titled-Tuesday-Blitz-April-02-2024"]
[Site "Chess.com"]
[Date "2024.04.02"]
[Round "6"]
[White "ural58"]
[Black "APOKALIPSA13"]
[Result "1/2-1/2"]
[WhiteElo "2476"]
[BlackElo "2296"]
[TimeControl "180+1"]
[EndTime "15:04:29 PDT"]
[Termination "Game drawn - insufficient material"]

1. e4 {[%clk 0:02:48.4]} 1... e5 {[%clk 0:02:56.3]} 2. f4 {[%clk 0:02:47.2]}
2... exf4 {[%clk 0:02:56.2]} 3. Bc4 {[%clk 0:02:46.5]} 3... d5 {[%clk
0:02:55.9]} 4. Bxd5 {[%clk 0:02:43.7]} 4... Qh4+ {[%clk 0:02:54.7]} 5. Kf1
{[%clk 0:02:38.2]} 5... c6 {[%clk 0:02:54]} 6. Nf3 {[%clk 0:02:36.8]} 6... Qh5
{[%clk 0:02:53.6]} 7. Bc4 {[%clk 0:02:31.5]} 7... Bg4 {[%clk 0:02:51.2]} 8. d4
{[%clk 0:02:23.8]} 8... Nf6 {[%clk 0:02:45]} 9. Nc3 {[%clk 0:02:21.7]} 9... b5
{[%clk 0:02:43.7]} 10. Bd3 {[%clk 0:02:17.9]} 10... b4 {[%clk 0:02:32.7]} 11. e5
{[%clk 0:01:38.4]} 11... bxc3 {[%clk 0:02:13.1]} 12. exf6 {[%clk 0:01:16.7]}
12... cxb2 {[%clk 0:02:11.4]} 13. Bxb2 {[%clk 0:01:10.3]} 13... gxf6 {[%clk
0:02:10.8]} 14. Qe2+ {[%clk 0:01:01]} 14... Kd8 {[%clk 0:02:06.1]} 15. Re1
{[%clk 0:00:58.7]} 15... Bxf3 {[%clk 0:01:48.3]} 16. Qxf3 {[%clk 0:00:52.1]}
16... Qxf3+ {[%clk 0:01:46.9]} 17. gxf3 {[%clk 0:00:48.7]} 17... Nd7 {[%clk
0:01:44.2]} 18. Rg1 {[%clk 0:00:47.9]} 18... Bb4 {[%clk 0:01:39.7]} 19. c3
{[%clk 0:00:36.3]} 19... Bf8 {[%clk 0:01:33.6]} 20. Bc1 {[%clk 0:00:33.4]} 20...
Bh6 {[%clk 0:01:30]} 21. Rg4 {[%clk 0:00:31.5]} 21... Bg5 {[%clk 0:01:25.4]} 22.
Bxf4 {[%clk 0:00:26]} 22... h5 {[%clk 0:01:23.5]} 23. Rxg5 {[%clk 0:00:25.2]}
23... fxg5 {[%clk 0:01:22.8]} 24. Bxg5+ {[%clk 0:00:26.1]} 24... f6 {[%clk
0:01:22.6]} 25. Bf4 {[%clk 0:00:26.2]} 25... Re8 {[%clk 0:01:19.1]} 26. Rb1
{[%clk 0:00:23.5]} 26... Nb6 {[%clk 0:01:10.6]} 27. c4 {[%clk 0:00:23.6]} 27...
Rg8 {[%clk 0:01:03.8]} 28. Kf2 {[%clk 0:00:22.5]} 28... Rc8 {[%clk 0:00:53.9]}
29. a4 {[%clk 0:00:22.1]} 29... Nxa4 {[%clk 0:00:49.7]} 30. Rb7 {[%clk
0:00:21.9]} 30... Rg5 {[%clk 0:00:40.1]} 31. Bxg5 {[%clk 0:00:19.7]} 31... fxg5
{[%clk 0:00:41]} 32. Rxa7 {[%clk 0:00:20]} 32... Nb2 {[%clk 0:00:40]} 33. Be2
{[%clk 0:00:19.5]} 33... Rb8 {[%clk 0:00:39.4]} 34. Rh7 {[%clk 0:00:19.2]} 34...
g4 {[%clk 0:00:38.6]} 35. Rh8+ {[%clk 0:00:18.2]} 35... Kc7 {[%clk 0:00:38]} 36.
Rxb8 {[%clk 0:00:19.1]} 36... Kxb8 {[%clk 0:00:38.1]} 37. fxg4 {[%clk 0:00:20]}
37... hxg4 {[%clk 0:00:38.2]} 38. Kg3 {[%clk 0:00:20.9]} 38... c5 {[%clk
0:00:35.2]} 39. dxc5 {[%clk 0:00:20.2]} 39... Kc7 {[%clk 0:00:34.6]} 40. Kxg4
{[%clk 0:00:20.7]} 40... Kc6 {[%clk 0:00:35]} 41. h4 {[%clk 0:00:21.4]} 41...
Kxc5 {[%clk 0:00:33.1]} 42. h5 {[%clk 0:00:22]} 42... Kd4 {[%clk 0:00:33.1]} 43.
h6 {[%clk 0:00:22.2]} 43... Ke3 {[%clk 0:00:33.5]} 44. h7 {[%clk 0:00:20.7]}
44... Kxe2 {[%clk 0:00:33.5]} 45. h8=Q {[%clk 0:00:21.6]} 45... Nxc4 {[%clk
0:00:33.3]} 46. Qd4 {[%clk 0:00:21]} 46... Ne3+ {[%clk 0:00:32.4]} 47. Kf4
{[%clk 0:00:21.5]} 47... Nd1 {[%clk 0:00:31.4]} 48. Qc4+ {[%clk 0:00:19.7]}
48... Kd2 {[%clk 0:00:30.4]} 49. Kf3 {[%clk 0:00:19.8]} 49... Nc3 {[%clk
0:00:28.5]} 50. Qd4+ {[%clk 0:00:19.6]} 50... Kc2 {[%clk 0:00:28.1]} 51. Ke3
{[%clk 0:00:19.1]} 51... Nd1+ {[%clk 0:00:27.9]} 52. Ke2 {[%clk 0:00:18.5]}
52... Nc3+ {[%clk 0:00:27.7]} 53. Ke1 {[%clk 0:00:19.1]} 53... Nb1 {[%clk
0:00:27.1]} 54. Qc4+ {[%clk 0:00:18.3]} 54... Nc3 {[%clk 0:00:25.1]} 55. Qc5
{[%clk 0:00:17.6]} 55... Kd3 {[%clk 0:00:24]} 56. Kf2 {[%clk 0:00:16.4]} 56...
Ne4+ {[%clk 0:00:23.1]} 57. Kf3 {[%clk 0:00:12.9]} 57... Nxc5 {[%clk 0:00:24]}
1/2-1/2

[Event "Late-Titled-Tuesday-Blitz-April-02-2024"]
[Site "Chess.com"]
[Date "2024.04.02"]
[Round "6"]
[White "ZachHKL"]
[Black "Happy1712Drummer"]
[Result "0-1"]
[WhiteElo "2260"]
[BlackElo "2458"]
[TimeControl "180+1"]
[EndTime "15:04:29 PDT"]
[Termination "Happy1712Drummer won by checkmate"]

1. e4 {[%clk 0:03:00.9]} 1... e6 {[%clk 0:02:59]} 2. d4 {[%clk 0:03:00.5]} 2...
d5 {[%clk 0:02:59.9]} 3. Nd2 {[%clk 0:03:00.3]} 3... Be7 {[%clk 0:02:55]} 4.
Ngf3 {[%clk 0:02:56.3]} 4... Nf6 {[%clk 0:02:53.6]} 5. Bd3 {[%clk 0:02:56.1]}
5... c5 {[%clk 0:02:51.5]} 6. exd5 {[%clk 0:02:52.7]} 6... cxd4 {[%clk 0:02:46]}
7. Nxd4 {[%clk 0:02:47]} 7... Qxd5 {[%clk 0:02:44.1]} 8. N2f3 {[%clk 0:02:47]}
8... a6 {[%clk 0:02:42.3]} 9. c4 {[%clk 0:02:44.2]} 9... Qd8 {[%clk 0:02:34.1]}
10. Ne2 {[%clk 0:02:33.4]} 10... Nc6 {[%clk 0:02:29.3]} 11. O-O {[%clk
0:02:31.7]} 11... b6 {[%clk 0:02:21.6]} 12. Bf4 {[%clk 0:02:22.9]} 12... Bb7
{[%clk 0:02:21.1]} 13. a3 {[%clk 0:02:20.4]} 13... O-O {[%clk 0:02:12.2]} 14.
Qc2 {[%clk 0:02:15.8]} 14... Qc8 {[%clk 0:01:35.4]} 15. Rad1 {[%clk 0:02:12]}
15... Rd8 {[%clk 0:01:31.5]} 16. Ng3 {[%clk 0:02:05]} 16... h6 {[%clk
0:01:24.6]} 17. Ne4 {[%clk 0:02:01.2]} 17... Nd4 {[%clk 0:01:19]} 18. Nxd4
{[%clk 0:01:47.2]} 18... Rxd4 {[%clk 0:01:19.5]} 19. Be5 {[%clk 0:01:37.5]}
19... Rxd3 {[%clk 0:01:09.6]} 20. Qxd3 {[%clk 0:00:59.6]} 20... Bxe4 {[%clk
0:01:01.7]} 21. Qe3 {[%clk 0:00:56.6]} 21... Qb7 {[%clk 0:00:59.8]} 22. Bd6
{[%clk 0:00:52.7]} 22... Bxg2 {[%clk 0:00:38.6]} 23. Rfe1 {[%clk 0:00:29.7]}
23... Bh1 {[%clk 0:00:38.1]} 24. f3 {[%clk 0:00:16.7]} 24... Bxd6 {[%clk
0:00:34.7]} 25. Rxd6 {[%clk 0:00:15.9]} 25... Qxf3 {[%clk 0:00:32.6]} 26. Qxf3
{[%clk 0:00:15.9]} 26... Bxf3 {[%clk 0:00:33.2]} 27. Rxb6 {[%clk 0:00:16.5]}
27... a5 {[%clk 0:00:30.7]} 28. c5 {[%clk 0:00:16.6]} 28... Rc8 {[%clk
0:00:29.3]} 29. Rc1 {[%clk 0:00:15.8]} 29... Bc6 {[%clk 0:00:27.9]} 30. b4
{[%clk 0:00:14.7]} 30... axb4 {[%clk 0:00:27.2]} 31. axb4 {[%clk 0:00:15.6]}
31... Nd5 {[%clk 0:00:27.1]} 32. Ra6 {[%clk 0:00:10.9]} 32... Nxb4 {[%clk
0:00:26.8]} 33. Rb6 {[%clk 0:00:11.8]} 33... Nd5 {[%clk 0:00:24.6]} 34. Rb2
{[%clk 0:00:12.3]} 34... Nf4 {[%clk 0:00:23.3]} 35. Rcb1 {[%clk 0:00:10.7]}
35... Kh7 {[%clk 0:00:20.6]} 36. Rb8 {[%clk 0:00:09.7]} 36... Rc7 {[%clk
0:00:21.1]} 37. R1b6 {[%clk 0:00:09.2]} 37... Nd5 {[%clk 0:00:19.7]} 38. Ra6
{[%clk 0:00:09.8]} 38... f5 {[%clk 0:00:19.1]} 39. Rb2 {[%clk 0:00:06.8]} 39...
f4 {[%clk 0:00:17.9]} 40. Kf2 {[%clk 0:00:06.4]} 40... g5 {[%clk 0:00:17.3]} 41.
Re2 {[%clk 0:00:05.6]} 41... Ne3 {[%clk 0:00:13.9]} 42. Rd2 {[%clk 0:00:04.2]}
42... Ng4+ {[%clk 0:00:10.8]} 43. Kg1 {[%clk 0:00:04.8]} 43... f3 {[%clk
0:00:10.3]} 44. Ra3 {[%clk 0:00:04.9]} 44... f2+ {[%clk 0:00:09.8]} 45. Kf1
{[%clk 0:00:05.4]} 45... Bb5+ {[%clk 0:00:09]} 46. Re2 {[%clk 0:00:05.9]} 46...
Bxe2+ {[%clk 0:00:07.3]} 47. Kxe2 {[%clk 0:00:06.8]} 47... Rxc5 {[%clk
0:00:07.1]} 48. h3 {[%clk 0:00:06.8]} 48... Re5+ {[%clk 0:00:07]} 49. Kf1 {[%clk
0:00:05.7]} 49... Re1+ {[%clk 0:00:06.8]} 50. Kg2 {[%clk 0:00:06.6]} 50... f1=Q+
{[%clk 0:00:06.8]} 51. Kg3 {[%clk 0:00:07.5]} 51... Qf4+ {[%clk 0:00:06.6]} 52.
Kg2 {[%clk 0:00:07.7]} 52... Qf2# {[%clk 0:00:06.1]} 0-1

[Event "Late-Titled-Tuesday-Blitz-April-02-2024"]
[Site "Chess.com"]
[Date "2024.04.02"]
[Round "6"]
[White "platy3"]
[Black "Rashad_Zeynalli"]
[Result "1-0"]
[WhiteElo "2947"]
[BlackElo "2689"]
[TimeControl "180+1"]
[EndTime "15:04:37 PDT"]
[Termination "platy3 won on time"]

1. e4 {[%clk 0:02:58.7]} 1... e5 {[%clk 0:02:59.6]} 2. Nf3 {[%clk 0:02:43.7]}
2... Nc6 {[%clk 0:03:00]} 3. Bc4 {[%clk 0:02:43.2]} 3... Nf6 {[%clk 0:02:59.8]}
4. d3 {[%clk 0:02:42.9]} 4... h6 {[%clk 0:02:59.5]} 5. a4 {[%clk 0:02:39.5]}
5... g5 {[%clk 0:02:50.1]} 6. Nc3 {[%clk 0:02:38.4]} 6... Bc5 {[%clk 0:02:46.9]}
7. Be3 {[%clk 0:02:37.3]} 7... d6 {[%clk 0:02:44.6]} 8. h3 {[%clk 0:02:33.4]}
8... Be6 {[%clk 0:02:30.2]} 9. Bxe6 {[%clk 0:02:28.8]} 9... fxe6 {[%clk
0:02:29.8]} 10. Bxc5 {[%clk 0:02:29]} 10... dxc5 {[%clk 0:02:30.1]} 11. Qd2
{[%clk 0:02:26.7]} 11... a6 {[%clk 0:02:19.6]} 12. a5 {[%clk 0:02:22.9]} 12...
Qd6 {[%clk 0:02:17.1]} 13. Qe3 {[%clk 0:02:19.3]} 13... Nd4 {[%clk 0:02:15.9]}
14. Rc1 {[%clk 0:02:18.6]} 14... Nh5 {[%clk 0:02:04.2]} 15. Nd2 {[%clk
0:02:15.5]} 15... Nf4 {[%clk 0:02:00.3]} 16. Kf1 {[%clk 0:02:15.4]} 16... Rf8
{[%clk 0:01:49]} 17. Nc4 {[%clk 0:02:14.1]} 17... Qe7 {[%clk 0:01:40.4]} 18.
Nxe5 {[%clk 0:02:13.5]} 18... O-O-O {[%clk 0:01:37.3]} 19. g3 {[%clk 0:02:12.1]}
19... Qg7 {[%clk 0:01:26.8]} 20. Nc4 {[%clk 0:02:08.7]} 20... Nh5 {[%clk
0:01:01.2]} 21. Nd2 {[%clk 0:02:07.9]} 21... Qe5 {[%clk 0:00:48.6]} 22. Kg2
{[%clk 0:02:01]} 22... Nf4+ {[%clk 0:00:48]} 23. Kh2 {[%clk 0:01:59.8]} 23...
Nxc2 {[%clk 0:00:41.5]} 24. Rxc2 {[%clk 0:01:51.8]} 24... Rxd3 {[%clk
0:00:41.7]} 25. gxf4 {[%clk 0:01:28]} 25... Rxf4 {[%clk 0:00:38.1]} 26. Qxd3
{[%clk 0:01:27.4]} 26... Rf3+ {[%clk 0:00:27.1]} 27. Kg2 {[%clk 0:01:28]} 27...
Rxd3 {[%clk 0:00:27.7]} 28. Re1 {[%clk 0:01:28.6]} 28... h5 {[%clk 0:00:20.7]}
29. Nf1 {[%clk 0:01:23.2]} 29... g4 {[%clk 0:00:17.7]} 30. hxg4 {[%clk
0:01:23.2]} 30... hxg4 {[%clk 0:00:17.1]} 31. Re3 {[%clk 0:01:23.2]} 31... c4
{[%clk 0:00:16.5]} 32. Rxd3 {[%clk 0:01:11.2]} 32... cxd3 {[%clk 0:00:17.4]} 33.
Rd2 {[%clk 0:01:11.8]} 33... Qxa5 {[%clk 0:00:16.6]} 34. Rxd3 {[%clk 0:01:11.3]}
34... Qb4 {[%clk 0:00:16.4]} 35. Rd2 {[%clk 0:01:10]} 35... a5 {[%clk
0:00:16.7]} 36. Ne3 {[%clk 0:01:07]} 36... c6 {[%clk 0:00:15.3]} 37. Nxg4 {[%clk
0:01:03.5]} 37... a4 {[%clk 0:00:14.1]} 38. Rc2 {[%clk 0:01:02.3]} 38... Qb3
{[%clk 0:00:12.6]} 39. Ne3 {[%clk 0:01:01.8]} 39... b5 {[%clk 0:00:11.5]} 40.
Ne2 {[%clk 0:00:59.5]} 40... Kb7 {[%clk 0:00:10.3]} 41. Kf3 {[%clk 0:00:51.8]}
41... b4 {[%clk 0:00:10]} 42. Nd4 {[%clk 0:00:51.3]} 42... Qd3 {[%clk
0:00:09.4]} 43. Nxc6 {[%clk 0:00:43.1]} 43... b3 {[%clk 0:00:09.7]} 44. Rc4
{[%clk 0:00:39.1]} 44... a3 {[%clk 0:00:08.1]} 45. Ne5 {[%clk 0:00:30.8]} 45...
Qb1 {[%clk 0:00:04]} 46. bxa3 {[%clk 0:00:26.4]} 46... Qh1+ {[%clk 0:00:03.8]}
47. Ke2 {[%clk 0:00:24.8]} 47... Ka6 {[%clk 0:00:03.2]} 48. Ra4+ {[%clk
0:00:23.2]} 48... Kb5 {[%clk 0:00:02.6]} 49. Rb4+ {[%clk 0:00:24.1]} 49... Kc5
{[%clk 0:00:02.6]} 50. Nd3+ {[%clk 0:00:22.9]} 50... Kd6 {[%clk 0:00:02.3]} 51.
e5+ {[%clk 0:00:23.1]} 51... Kc6 {[%clk 0:00:01.5]} 52. Rxb3 {[%clk 0:00:22.2]}
52... Qa1 {[%clk 0:00:01.9]} 53. Nc2 {[%clk 0:00:13]} 53... Qa2 {[%clk
0:00:01.8]} 54. Nb4+ {[%clk 0:00:12.9]} 1-0

[Event "Late-Titled-Tuesday-Blitz-April-02-2024"]
[Site "Chess.com"]
[Date "2024.04.02"]
[Round "6"]
[White "Grischuk"]
[Black "temus_galaktionov"]
[Result "0-1"]
[WhiteElo "3058"]
[BlackElo "2861"]
[TimeControl "180+1"]
[EndTime "15:04:39 PDT"]
[Termination "temus_galaktionov won on time"]

1. d4 {[%clk 0:03:00.9]} 1... c6 {[%clk 0:03:00.9]} 2. Nf3 {[%clk 0:02:49.5]}
2... g6 {[%clk 0:03:01.8]} 3. e4 {[%clk 0:02:48.9]} 3... d6 {[%clk 0:03:02.3]}
4. Bd3 {[%clk 0:02:48.3]} 4... Bg7 {[%clk 0:03:02.9]} 5. O-O {[%clk 0:02:48.6]}
5... Nd7 {[%clk 0:03:03.1]} 6. Re1 {[%clk 0:02:47.7]} 6... e5 {[%clk 0:03:03.1]}
7. c3 {[%clk 0:02:48.3]} 7... Ngf6 {[%clk 0:03:03.2]} 8. Nbd2 {[%clk 0:02:48.7]}
8... O-O {[%clk 0:03:03.3]} 9. Nf1 {[%clk 0:02:44.7]} 9... Qc7 {[%clk
0:03:03.4]} 10. Ng3 {[%clk 0:02:44.7]} 10... b6 {[%clk 0:03:03.6]} 11. h3 {[%clk
0:02:42.4]} 11... Bb7 {[%clk 0:03:03.3]} 12. Bg5 {[%clk 0:02:42.1]} 12... Rfe8
{[%clk 0:03:02.8]} 13. Qd2 {[%clk 0:02:42]} 13... d5 {[%clk 0:02:54.8]} 14. Nxe5
{[%clk 0:02:26.7]} 14... Nxe5 {[%clk 0:01:35.8]} 15. dxe5 {[%clk 0:02:26.4]}
15... Nxe4 {[%clk 0:01:36.4]} 16. Bxe4 {[%clk 0:02:25.5]} 16... dxe4 {[%clk
0:01:37.3]} 17. Nxe4 {[%clk 0:02:24.9]} 17... Bxe5 {[%clk 0:01:37.8]} 18. Nf6+
{[%clk 0:02:16]} 18... Bxf6 {[%clk 0:01:38.1]} 19. Bxf6 {[%clk 0:02:13.7]} 19...
Re6 {[%clk 0:01:39]} 20. Rxe6 {[%clk 0:02:10.2]} 20... fxe6 {[%clk 0:01:39.9]}
21. Re1 {[%clk 0:01:57.8]} 21... Re8 {[%clk 0:01:38.9]} 22. Be5 {[%clk
0:01:50.4]} 22... Qe7 {[%clk 0:01:28.7]} 23. Re3 {[%clk 0:01:41.7]} 23... Rd8
{[%clk 0:01:18.1]} 24. Qe2 {[%clk 0:01:41.6]} 24... c5 {[%clk 0:01:14]} 25. Kh2
{[%clk 0:01:06.5]} 25... Qf7 {[%clk 0:00:52.7]} 26. c4 {[%clk 0:01:00.9]} 26...
h6 {[%clk 0:00:36]} 27. Rg3 {[%clk 0:00:46.2]} 27... Kh7 {[%clk 0:00:32.6]} 28.
Bc3 {[%clk 0:00:39.3]} 28... Qf5 {[%clk 0:00:28.3]} 29. Qe3 {[%clk 0:00:28.8]}
29... Rd7 {[%clk 0:00:18.2]} 30. Rg4 {[%clk 0:00:24.8]} 30... g5 {[%clk
0:00:16.4]} 31. Rg3 {[%clk 0:00:15.1]} 31... Qe4 {[%clk 0:00:15.9]} 32. Qxe4+
{[%clk 0:00:05.6]} 32... Bxe4 {[%clk 0:00:16.8]} 33. Re3 {[%clk 0:00:05.9]}
33... Bb1 {[%clk 0:00:16.3]} 34. a3 {[%clk 0:00:05.7]} 34... Ba2 {[%clk
0:00:16.6]} 35. Re4 {[%clk 0:00:05.4]} 35... Rd6 {[%clk 0:00:15.5]} 36. g4
{[%clk 0:00:04.3]} 36... Kg6 {[%clk 0:00:15.2]} 37. f3 {[%clk 0:00:03.1]} 37...
Kf7 {[%clk 0:00:14.4]} 38. Kg3 {[%clk 0:00:02.9]} 38... Bb1 {[%clk 0:00:11.9]}
39. Re3 {[%clk 0:00:02.7]} 39... Ba2 {[%clk 0:00:12.1]} 40. Re4 {[%clk
0:00:03.1]} 40... Bb1 {[%clk 0:00:12.3]} 41. Re5 {[%clk 0:00:03.4]} 41... Ba2
{[%clk 0:00:12.2]} 42. h4 {[%clk 0:00:03.5]} 42... gxh4+ {[%clk 0:00:11.3]} 43.
Kxh4 {[%clk 0:00:04.4]} 43... Bxc4 {[%clk 0:00:11.7]} 44. Rh5 {[%clk 0:00:04.8]}
44... Kg6 {[%clk 0:00:12.1]} 45. Kg3 {[%clk 0:00:03.8]} 45... Rd3 {[%clk
0:00:11]} 46. Kf4 {[%clk 0:00:03.2]} 46... Bd5 {[%clk 0:00:11.1]} 47. Rh3 {[%clk
0:00:03.5]} 47... b5 {[%clk 0:00:11.1]} 48. Be5 {[%clk 0:00:02.9]} 48... b4
{[%clk 0:00:11.1]} 49. axb4 {[%clk 0:00:02.6]} 49... cxb4 {[%clk 0:00:12]} 50.
Bc7 {[%clk 0:00:02.9]} 50... Rb3 {[%clk 0:00:10.4]} 51. Bd6 {[%clk 0:00:02.8]}
51... Rxb2 {[%clk 0:00:09.8]} 52. Bf8 {[%clk 0:00:02.3]} 52... Kf7 {[%clk
0:00:09.2]} 0-1

[Event "Late-Titled-Tuesday-Blitz-April-02-2024"]
[Site "Chess.com"]
[Date "2024.04.02"]
[Round "6"]
[White "ameetghasi100"]
[Black "Msb2"]
[Result "0-1"]
[WhiteElo "2801"]
[BlackElo "3039"]
[TimeControl "180+1"]
[EndTime "15:04:40 PDT"]
[Termination "Msb2 won on time"]

1. Nf3 {[%clk 0:03:00.8]} 1... d5 {[%clk 0:02:59.8]} 2. g3 {[%clk 0:03:01.7]}
2... e6 {[%clk 0:03:00.3]} 3. Bg2 {[%clk 0:03:02.3]} 3... Nf6 {[%clk 0:03:01.2]}
4. O-O {[%clk 0:03:03]} 4... Bd6 {[%clk 0:03:01.9]} 5. d3 {[%clk 0:03:03.9]}
5... O-O {[%clk 0:03:02.3]} 6. Nc3 {[%clk 0:03:04.4]} 6... e5 {[%clk 0:03:02.4]}
7. e4 {[%clk 0:03:04.6]} 7... d4 {[%clk 0:03:01.5]} 8. Ne2 {[%clk 0:03:04.6]}
8... c5 {[%clk 0:03:01.8]} 9. Nh4 {[%clk 0:03:05.1]} 9... Nc6 {[%clk 0:03:00.3]}
10. Nf5 {[%clk 0:03:05]} 10... Re8 {[%clk 0:02:50.7]} 11. h3 {[%clk 0:02:55.7]}
11... Bxf5 {[%clk 0:02:46.5]} 12. exf5 {[%clk 0:02:55.4]} 12... e4 {[%clk
0:02:47.4]} 13. Bg5 {[%clk 0:02:54.3]} 13... exd3 {[%clk 0:02:40.8]} 14. cxd3
{[%clk 0:02:54.1]} 14... h6 {[%clk 0:02:41.4]} 15. Bd2 {[%clk 0:02:48.1]} 15...
Qd7 {[%clk 0:02:22.2]} 16. g4 {[%clk 0:02:48.1]} 16... Ne5 {[%clk 0:02:19.9]}
17. Nf4 {[%clk 0:02:45.9]} 17... Bc7 {[%clk 0:02:13.2]} 18. Rc1 {[%clk
0:02:42.4]} 18... Qd6 {[%clk 0:02:12.3]} 19. Re1 {[%clk 0:02:39.3]} 19... Re7
{[%clk 0:02:06.5]} 20. Qc2 {[%clk 0:02:33.8]} 20... Rae8 {[%clk 0:01:54.4]} 21.
Kf1 {[%clk 0:02:33.6]} 21... b6 {[%clk 0:01:41.5]} 22. a3 {[%clk 0:02:31.3]}
22... Nexg4 {[%clk 0:01:28]} 23. hxg4 {[%clk 0:02:18.7]} 23... Nxg4 {[%clk
0:01:28.9]} 24. Nd5 {[%clk 0:02:05.6]} 24... Rxe1+ {[%clk 0:00:51.1]} 25. Rxe1
{[%clk 0:02:06.5]} 25... Rxe1+ {[%clk 0:00:51.6]} 26. Bxe1 {[%clk 0:01:53.2]}
26... Qe5 {[%clk 0:00:46]} 27. Qd1 {[%clk 0:01:44.2]} 27... h5 {[%clk 0:00:34]}
28. Bd2 {[%clk 0:01:11.6]} 28... Bd8 {[%clk 0:00:33.8]} 29. Be4 {[%clk
0:00:55.1]} 29... Qh2 {[%clk 0:00:32.7]} 30. Qf3 {[%clk 0:00:54.8]} 30... Bh4
{[%clk 0:00:30]} 31. Bf4 {[%clk 0:00:30.4]} 31... Qxf2+ {[%clk 0:00:26.8]} 32.
Qxf2 {[%clk 0:00:30]} 32... Nxf2 {[%clk 0:00:27.4]} 33. f6 {[%clk 0:00:21.5]}
33... Nxe4 {[%clk 0:00:19.7]} 34. dxe4 {[%clk 0:00:20.9]} 34... g5 {[%clk
0:00:20.6]} 35. Bb8 {[%clk 0:00:20.7]} 35... g4 {[%clk 0:00:15.7]} 36. Bxa7
{[%clk 0:00:20.1]} 36... c4 {[%clk 0:00:15.4]} 37. Bxb6 {[%clk 0:00:19.7]} 37...
d3 {[%clk 0:00:16.3]} 38. Be3 {[%clk 0:00:19.2]} 38... Bg3 {[%clk 0:00:16]} 39.
a4 {[%clk 0:00:19.1]} 39... h4 {[%clk 0:00:15.8]} 40. a5 {[%clk 0:00:15.6]}
40... Kh7 {[%clk 0:00:12.4]} 41. a6 {[%clk 0:00:15.5]} 41... Bb8 {[%clk
0:00:13.1]} 42. e5 {[%clk 0:00:12.1]} 42... h3 {[%clk 0:00:12]} 43. a7 {[%clk
0:00:10]} 43... Bxa7 {[%clk 0:00:12.3]} 44. Bxa7 {[%clk 0:00:10.9]} 44... Kg6
{[%clk 0:00:12.3]} 45. Ne3 {[%clk 0:00:10]} 45... d2 {[%clk 0:00:08.4]} 46. Nd1
{[%clk 0:00:09.6]} 46... Kf5 {[%clk 0:00:08.4]} 47. Bd4 {[%clk 0:00:09.4]} 47...
Ke4 {[%clk 0:00:07]} 48. e6 {[%clk 0:00:08.6]} 48... Kf3 {[%clk 0:00:05.2]} 49.
Kg1 {[%clk 0:00:02.1]} 49... Ke2 {[%clk 0:00:05.9]} 50. e7 {[%clk 0:00:01.1]}
50... Kxd1 {[%clk 0:00:06.8]} 51. e8=Q {[%clk 0:00:01.2]} 51... Kc2 {[%clk
0:00:07.5]} 0-1

[Event "Late-Titled-Tuesday-Blitz-April-02-2024"]
[Site "Chess.com"]
[Date "2024.04.02"]
[Round "6"]
[White "Koalaskakistis"]
[Black "ChessSwole"]
[Result "1/2-1/2"]
[WhiteElo "2540"]
[BlackElo "2695"]
[TimeControl "180+1"]
[EndTime "15:04:40 PDT"]
[Termination "Game drawn - insufficient material"]

1. e4 {[%clk 0:03:00.9]} 1... e5 {[%clk 0:02:59.2]} 2. Nf3 {[%clk 0:02:58.5]}
2... Nc6 {[%clk 0:02:59.4]} 3. d4 {[%clk 0:02:58.5]} 3... exd4 {[%clk
0:02:59.1]} 4. Bc4 {[%clk 0:02:58.3]} 4... Nf6 {[%clk 0:02:56.4]} 5. O-O {[%clk
0:02:54.3]} 5... Nxe4 {[%clk 0:02:55.8]} 6. Re1 {[%clk 0:02:54.7]} 6... d5
{[%clk 0:02:56.1]} 7. Bxd5 {[%clk 0:02:55.1]} 7... Qxd5 {[%clk 0:02:57]} 8. Nc3
{[%clk 0:02:55.8]} 8... Qd7 {[%clk 0:02:43.7]} 9. Nxe4 {[%clk 0:02:50]} 9... Be7
{[%clk 0:02:42.6]} 10. Bg5 {[%clk 0:02:47.3]} 10... O-O {[%clk 0:02:41.1]} 11.
Bxe7 {[%clk 0:02:46.7]} 11... Qxe7 {[%clk 0:02:42]} 12. Nxd4 {[%clk 0:02:46.6]}
12... Bd7 {[%clk 0:02:40.5]} 13. Ng3 {[%clk 0:02:28.4]} 13... Qf6 {[%clk
0:02:36.5]} 14. Nxc6 {[%clk 0:02:23.6]} 14... Bxc6 {[%clk 0:02:37.4]} 15. c3
{[%clk 0:02:23.6]} 15... Rad8 {[%clk 0:02:32.8]} 16. Qc2 {[%clk 0:02:22.7]}
16... Rfe8 {[%clk 0:02:15.9]} 17. Rad1 {[%clk 0:02:17.4]} 17... Qg5 {[%clk
0:02:04.9]} 18. Rxe8+ {[%clk 0:02:05.6]} 18... Rxe8 {[%clk 0:02:05.8]} 19. Qd2
{[%clk 0:01:43.4]} 19... Qxd2 {[%clk 0:01:51.6]} 20. Rxd2 {[%clk 0:01:44.3]}
20... Re1+ {[%clk 0:01:48.9]} 21. Nf1 {[%clk 0:01:44.3]} 21... Kf8 {[%clk
0:01:45.4]} 22. c4 {[%clk 0:01:38.1]} 22... a5 {[%clk 0:01:30.8]} 23. f3 {[%clk
0:01:33.1]} 23... a4 {[%clk 0:01:22]} 24. Kf2 {[%clk 0:01:29.5]} 24... Ra1
{[%clk 0:01:22.5]} 25. b3 {[%clk 0:01:29.7]} 25... g5 {[%clk 0:01:09.2]} 26. Ne3
{[%clk 0:01:29.7]} 26... h5 {[%clk 0:01:02.2]} 27. b4 {[%clk 0:01:18.2]} 27...
b5 {[%clk 0:00:55.5]} 28. cxb5 {[%clk 0:00:50.6]} 28... Bxb5 {[%clk 0:00:56.4]}
29. Rc2 {[%clk 0:00:42.8]} 29... c6 {[%clk 0:00:55]} 30. Nf5 {[%clk 0:00:43]}
30... f6 {[%clk 0:00:48.4]} 31. Nd4 {[%clk 0:00:41.7]} 31... Ke7 {[%clk
0:00:35.4]} 32. Ke3 {[%clk 0:00:28.7]} 32... Kd6 {[%clk 0:00:32.9]} 33. h4
{[%clk 0:00:23.9]} 33... gxh4 {[%clk 0:00:29.3]} 34. Nf5+ {[%clk 0:00:16.8]}
34... Ke6 {[%clk 0:00:29.6]} 35. Nd4+ {[%clk 0:00:16.5]} 35... Kd7 {[%clk
0:00:24.4]} 36. Kf4 {[%clk 0:00:14.7]} 36... Rd1 {[%clk 0:00:16.9]} 37. Nxb5
{[%clk 0:00:11.5]} 37... cxb5 {[%clk 0:00:17.8]} 38. Rc5 {[%clk 0:00:11.9]}
38... Rd4+ {[%clk 0:00:17.8]} 39. Ke3 {[%clk 0:00:11]} 39... Rxb4 {[%clk
0:00:18.2]} 40. Rxh5 {[%clk 0:00:11.4]} 40... Rb2 {[%clk 0:00:18]} 41. a3 {[%clk
0:00:08]} 41... Kc6 {[%clk 0:00:15.2]} 42. Rxh4 {[%clk 0:00:07.8]} 42... Rb3+
{[%clk 0:00:14.4]} 43. Kd4 {[%clk 0:00:07.9]} 43... Rxa3 {[%clk 0:00:14.4]} 44.
Rh6 {[%clk 0:00:08.6]} 44... Ra2 {[%clk 0:00:11.9]} 45. Rxf6+ {[%clk 0:00:08.8]}
45... Kb7 {[%clk 0:00:11.4]} 46. Kc5 {[%clk 0:00:09.4]} 46... Rb2 {[%clk
0:00:10.1]} 47. Rf7+ {[%clk 0:00:04.6]} 47... Kc8 {[%clk 0:00:10.2]} 48. Ra7
{[%clk 0:00:02.3]} 48... Kd8 {[%clk 0:00:08.8]} 49. g4 {[%clk 0:00:02.1]} 49...
Ke8 {[%clk 0:00:09.1]} 50. g5 {[%clk 0:00:02.6]} 50... Kf8 {[%clk 0:00:08.5]}
51. g6 {[%clk 0:00:03.2]} 51... Rf2 {[%clk 0:00:08.3]} 52. Kxb5 {[%clk 0:00:03]}
52... Rxf3 {[%clk 0:00:08.4]} 53. Rxa4 {[%clk 0:00:02.5]} 53... Rg3 {[%clk
0:00:08.3]} 54. Rc4 {[%clk 0:00:02.5]} 54... Rxg6 {[%clk 0:00:08.4]} 55. Rc5
{[%clk 0:00:03.2]} 55... Kf7 {[%clk 0:00:08.4]} 56. Rc7+ {[%clk 0:00:03.5]}
56... Kf6 {[%clk 0:00:09]} 57. Rc6+ {[%clk 0:00:04.4]} 57... Kf7 {[%clk
0:00:09.7]} 58. Rxg6 {[%clk 0:00:05.3]} 58... Kxg6 {[%clk 0:00:10.6]} 1/2-1/2